{"text_format":"3","workbook":"xlsx","n_sheets":4,"sheets":["Початок","Звіт про місячний бюджет","Місячні витрати","Додаткові дані"],"not_rendered":{"charts":1,"defined_names":4,"pivot_tables":2},"read":"whole","date_system":"1900"}

{"sheet":"Початок","index":0,"n_rows":8,"n_cols":2,"rows_kept":8}
[null,"ПРО ЦЕЙ ШАБЛОН"]
[null,"Відстежуйте витрати та створіть сімейний бюджет за допомогою цієї книги."]
[null,"Введіть прогнозовані та фактичні доходи з різних джерел на аркуші \"Звіт про місячний бюджет\" і прогнозовані та фактичні витрати на різні категорії на аркуші \"Місячні витрати\"."]
[null,"Різниця, прогнозований і фактичний баланс обчислюються автоматично. Діаграми огляду та зведення бюджету оновлюються на аркуші \"Звіт про місячний бюджет\"."]
[null,"Ви можете змінити категорії в таблиці на аркуші \"Додаткові дані\" або ввести нові."]
[null,"Примітка. "]
[null,"Додаткові вказівки наведено в стовпці A на аркуші \"Звіт про місячний бюджет\" і в клітинці A1 на аркушах \"Місячні витрати\" та \"Додаткові дані\". Цей текст приховано навмисно. Щоб вилучити текст, виберіть стовпець A або клітинку A1 і натисніть клавішу Delete. Щоб відобразити текст, виберіть стовпець A або клітинку A1 і змініть колір шрифту."]
[null,"Щоб дізнатися більше про таблиці, натисніть клавіші Shift+F10 у таблиці, виберіть \"Таблиця\", а потім – \"Текст заміщення\". Щоб дізнатися більше про зведену таблицю, натисніть у ній клавіші Shift+F10, виберіть \"Параметри зведеної таблиці\" та перейдіть на вкладку \"Текст заміщення\"."]

{"sheet":"Звіт про місячний бюджет","index":1,"n_rows":34,"n_cols":14,"rows_kept":34,"merged":[[0,1,0,4],[0,5,0,7],[0,12,0,13],[1,9,5,13],[2,2,2,5],[3,2,3,5],[4,2,4,5],[7,1,10,1],[7,5,10,5],[7,6,10,6],[8,9,31,9],[12,1,16,1],[12,5,16,5],[12,6,16,6],[19,1,34,6]]}
["Створіть звіт про місячний бюджет на цьому аркуші. Заголовок цього аркуша наведено в клітинці праворуч, а підзаголовок – у клітинці J1. Клацніть клітинку F1, щоб перейти на аркуш \"Місячні витрати\". Інші корисні вказівки щодо роботи з цим аркушем наведено в клітинках у цьому стовпці.","Огляд бюджету",{"$nulls":3},"Місячні витрати",{"$nulls":3},"Зведення бюджету",null,null,"У цій клітинці наведено зображення зеленого стебла пшениці."]
["Надпис \"Баланс\" наведено в клітинці праворуч. Роздільники зведених таблиць, які дають змогу фільтрувати дані, наведено в клітинках J2:N6. Щоб вибрати кілька категорій, натисніть і утримуйте клавішу Ctrl.","Баланс",{"$nulls":7},"Роздільник, який дає змогу фільтрувати зведену таблицю за вибраною Категорія, наведено в цій клітинці."]
["Надпис \"Прогнозований баланс\" наведено в клітинці праворуч. Прогнозований баланс автоматично обчислюється в клітинці G3.","Прогнозований баланс","(різниця прогнозованого доходу й витрат)",{"$nulls":3},{"$f":"D17-SUM(ВідомостіПроБюджет[Прогнозовані витрати])","v":{"v":1585,"d":"1,585₴"}}]
["Надпис \"Фактичний баланс\" наведено в клітинці праворуч. Фактичний баланс автоматично обчислюється в клітинці G4.","Фактичний баланс ","(різниця фактичного доходу й витрат)",{"$nulls":3},{"$f":"D11-SUM(ВідомостіПроБюджет[Фактичні витрати])","v":{"v":1740,"d":"1,740₴"}}]
["Надпис \"Різниця\" наведено в клітинці праворуч. Різниця автоматично обчислюється в клітинці G5. Подальші вказівки наведено в клітинці A7.","Різниця","(різниця запланованих і фактичних значень)",{"$nulls":3},{"$f":"G4-G3","v":{"v":155,"d":"155₴"}}]
[]
["Надпис \"Доходи\" наведено в клітинці праворуч, надпис \"Витрати\" – у клітинці F7, а підказку щодо зведення бюджету – у клітинці J7.","Доходи",{"$nulls":3},"Витрати",{"$nulls":3},"Виберіть наведену нижчу зведену таблицю, а потім на вкладці Аналізувати клацніть \"Оновити\", щоб оновити її."]
["Надпис \"Фактичні доходи\" наведено в клітинці праворуч, а надпис \"Фактичні витрати\" – у клітинці F8. Введіть дохід 1 у клітинку D8. Фактичні витрати обчислюються автоматично в клітинці G8.","ФАКТИЧНІ","Дохід 1",{"v":5800,"d":"5,800₴"},null,"ФАКТИЧНІ",{"$f":"SUM(ВідомостіПроБюджет[Фактичні витрати])","v":{"v":7860,"d":"7,860₴"}}]
["Введіть дохід 2 в клітинку D9. Зображення наведено в клітинці J9. Зведена таблиця починається в клітинці K9. Щоб оновити зведену таблицю, виберіть \"Оновити\" на вкладці \"Аналізувати\".",null,"Дохід 2",{"v":2300,"d":"2,300₴"},{"$nulls":5},"У цій клітинці наведено зображення.","Категорія","Прогнозовані витрати ","Фактичні витрати ","Різниця "]
["Введіть додатковий дохід у клітинку D10.",null,"Додатковий дохід",{"v":1500,"d":"1,500₴"},{"$nulls":6},"Діти",{"v":140,"d":"140₴"},{"v":140,"d":"140₴"},{"v":0,"d":"0₴"}]
["Надпис \"Загальний дохід\" наведено в клітинці C11. Загальний дохід автоматично обчислюється в клітинці D11. Подальші вказівки наведено в клітинці A13.",null,"Загальний дохід",{"$f":"SUM(D8:D10)","v":{"v":9600,"d":"9,600₴"}}]
[{"$nulls":10},"Розваги",{"v":400,"d":"400₴"},{"v":358,"d":"358₴"},{"v":42,"d":"42₴"}]
["Надпис \"Прогнозовані доходи\" наведено в клітинці праворуч, а надпис \"Прогнозовані витрати\" – у клітинці F13. Прогнозовані витрати обчислюються автоматично в клітинці G13.","ПРОГНОЗОВАНІ",{"$nulls":3},"ПРОГНОЗОВАНІ",{"$f":"SUM(ВідомостіПроБюджет[Прогнозовані витрати])","v":{"v":7915,"d":"7,915₴"}}]
["Введіть прогнозований дохід 1 у клітинку D14.",null,"Дохід 1",{"v":6000,"d":"6,000₴"},{"$nulls":6},"Страви",{"v":1100,"d":"1,100₴"},{"v":1320,"d":"1,320₴"},{"v":-220,"d":"-220₴"}]
["Введіть прогнозований дохід 2 в клітинку D15.",null,"Дохід 2",{"v":1000,"d":"1,000₴"}]
["Введіть додатковий дохід у клітинку D16.",null,"Додатковий дохід",{"v":2500,"d":"2,500₴"},{"$nulls":6},"Подарунки та благодійність",{"v":100,"d":"100₴"},{"v":125,"d":"125₴"},{"v":-25,"d":"-25₴"}]
["Надпис \"Загальний дохід\" наведено в клітинці C17. Загальний дохід автоматично обчислюється в клітинці D17. Подальші вказівки наведено в клітинці A20.",null,"Загальний дохід",{"$f":"SUM(D14:D16)","v":{"v":9500,"d":"9,500₴"}}]
[{"$nulls":10},"Житло",{"v":2830,"d":"2,830₴"},{"v":2702,"d":"2,702₴"},{"v":128,"d":"128₴"}]
[]
["Секторну діаграму з відсотком витрат за категоріями наведено в клітинці праворуч.","Секторну діаграму з відсотком витрат за категоріями наведено в цій клітинці.",{"$nulls":8},"Страхування",{"v":900,"d":"900₴"},{"v":900,"d":"900₴"},{"v":0,"d":"0₴"}]
[]
[{"$nulls":10},"Кредити",{"v":200,"d":"200₴"},{"v":200,"d":"200₴"},{"v":0,"d":"0₴"}]
[]
[{"$nulls":10},"Догляд за собою",{"v":150,"d":"150₴"},{"v":140,"d":"140₴"},{"v":10,"d":"10₴"}]
[]
[{"$nulls":10},"Домашні тварини",{"v":170,"d":"170₴"},{"v":100,"d":"100₴"},{"v":70,"d":"70₴"}]
[]
[{"$nulls":10},"Заощадження або інвестиції",{"v":200,"d":"200₴"},{"v":200,"d":"200₴"},{"v":0,"d":"0₴"}]
[]
[{"$nulls":10},"Податки",{"v":300,"d":"300₴"},{"v":300,"d":"300₴"},{"v":0,"d":"0₴"}]
[]
[{"$nulls":10},"Транспорт",{"v":1425,"d":"1,425₴"},{"v":1375,"d":"1,375₴"},{"v":50,"d":"50₴"}]
[]
[{"$nulls":10},"Загальний підсумок",{"v":7915,"d":"7,915₴"},{"v":7860,"d":"7,860₴"},{"v":55,"d":"55₴"}]

{"sheet":"Місячні витрати","index":2,"n_rows":62,"n_cols":7,"rows_kept":62,"merged":[[0,1,0,4],[0,5,0,6]]}
["Обчисліть на цьому аркуші місячні витрати. Заголовок цього аркуша наведено в клітинці праворуч. Клацніть клітинку F1, щоб перейти на аркуш \"Звіт про місячний бюджет\".","Місячні витрати",{"$nulls":3},"Звіт про місячний бюджет"]
[" Введіть дані в таблицю Відомості Про Бюджет, починаючи з клітинки праворуч.","Опис","Категорія","Прогнозовані витрати","Фактичні витрати","Різниця","Огляд фактичних витрат"]
[null,"Факультативні заняття","Діти",{"v":40,"d":"40₴"},{"v":40,"d":"40₴"},{"$f":"ВідомостіПроБюджет[[#This Row],[Прогнозовані витрати]]-ВідомостіПроБюджет[[#This Row],[Фактичні витрати]]","v":{"v":0,"d":"0₴"}},{"$f":"ВідомостіПроБюджет[[#This Row],[Фактичні витрати]]","v":{"v":40,"d":"40₴"}}]
[null,"Медицина","Діти",null,null,{"$f":"ВідомостіПроБюджет[[#This Row],[Прогнозовані витрати]]-ВідомостіПроБюджет[[#This Row],[Фактичні витрати]]","v":{"v":0,"d":"0₴"}},{"$f":"ВідомостіПроБюджет[[#This Row],[Фактичні витрати]]","v":{"v":0,"d":"0₴"}}]
[null,"Шкільне приладдя","Діти",null,null,{"$f":"ВідомостіПроБюджет[[#This Row],[Прогнозовані витрати]]-ВідомостіПроБюджет[[#This Row],[Фактичні витрати]]","v":{"v":0,"d":"0₴"}},{"$f":"ВідомостіПроБюджет[[#This Row],[Фактичні витрати]]","v":{"v":0,"d":"0₴"}}]
[null,"Шкільні внески","Діти",{"v":100,"d":"100₴"},{"v":100,"d":"100₴"},{"$f":"ВідомостіПроБюджет[[#This Row],[Прогнозовані витрати]]-ВідомостіПроБюджет[[#This Row],[Фактичні витрати]]","v":{"v":0,"d":"0₴"}},{"$f":"ВідомостіПроБюджет[[#This Row],[Фактичні витрати]]","v":{"v":100,"d":"100₴"}}]
[null,"Концерти","Розваги",{"v":50,"d":"50₴"},{"v":40,"d":"40₴"},{"$f":"ВідомостіПроБюджет[[#This Row],[Прогнозовані витрати]]-ВідомостіПроБюджет[[#This Row],[Фактичні витрати]]","v":{"v":10,"d":"10₴"}},{"$f":"ВідомостіПроБюджет[[#This Row],[Фактичні витрати]]","v":{"v":40,"d":"40₴"}}]
[null,"Театр","Розваги",{"v":200,"d":"200₴"},{"v":150,"d":"150₴"},{"$f":"ВідомостіПроБюджет[[#This Row],[Прогнозовані витрати]]-ВідомостіПроБюджет[[#This Row],[Фактичні витрати]]","v":{"v":50,"d":"50₴"}},{"$f":"ВідомостіПроБюджет[[#This Row],[Фактичні витрати]]","v":{"v":150,"d":"150₴"}}]
[null,"Фільми","Розваги",{"v":50,"d":"50₴"},{"v":28,"d":"28₴"},{"$f":"ВідомостіПроБюджет[[#This Row],[Прогнозовані витрати]]-ВідомостіПроБюджет[[#This Row],[Фактичні витрати]]","v":{"v":22,"d":"22₴"}},{"$f":"ВідомостіПроБюджет[[#This Row],[Фактичні витрати]]","v":{"v":28,"d":"28₴"}}]
[null,"Музика (компакт-диски, завантаження тощо)","Розваги",{"v":50,"d":"50₴"},{"v":30,"d":"30₴"},{"$f":"ВідомостіПроБюджет[[#This Row],[Прогнозовані витрати]]-ВідомостіПроБюджет[[#This Row],[Фактичні витрати]]","v":{"v":20,"d":"20₴"}},{"$f":"ВідомостіПроБюджет[[#This Row],[Фактичні витрати]]","v":{"v":30,"d":"30₴"}}]
[null,"Спортивні події","Розваги",{"v":0,"d":"0₴"},{"v":40,"d":"40₴"},{"$f":"ВідомостіПроБюджет[[#This Row],[Прогнозовані витрати]]-ВідомостіПроБюджет[[#This Row],[Фактичні витрати]]","v":{"v":-40,"d":"-40₴"}},{"$f":"ВідомостіПроБюджет[[#This Row],[Фактичні витрати]]","v":{"v":40,"d":"40₴"}}]
[null,"Відео/DVD (придбання)","Розваги",{"v":20,"d":"20₴"},{"v":50,"d":"50₴"},{"$f":"ВідомостіПроБюджет[[#This Row],[Прогнозовані витрати]]-ВідомостіПроБюджет[[#This Row],[Фактичні витрати]]","v":{"v":-30,"d":"-30₴"}},{"$f":"ВідомостіПроБюджет[[#This Row],[Фактичні витрати]]","v":{"v":50,"d":"50₴"}}]
[null,"Відео/DVD (прокат)","Розваги",{"v":30,"d":"30₴"},{"v":20,"d":"20₴"},{"$f":"ВідомостіПроБюджет[[#This Row],[Прогнозовані витрати]]-ВідомостіПроБюджет[[#This Row],[Фактичні витрати]]","v":{"v":10,"d":"10₴"}},{"$f":"ВідомостіПроБюджет[[#This Row],[Фактичні витрати]]","v":{"v":20,"d":"20₴"}}]
[null,"Ресторани/кафе","Страви",{"v":1000,"d":"1,000₴"},{"v":1200,"d":"1,200₴"},{"$f":"ВідомостіПроБюджет[[#This Row],[Прогнозовані витрати]]-ВідомостіПроБюджет[[#This Row],[Фактичні витрати]]","v":{"v":-200,"d":"-200₴"}},{"$f":"ВідомостіПроБюджет[[#This Row],[Фактичні витрати]]","v":{"v":1200,"d":"1,200₴"}}]
[null,"Продукти","Страви",{"v":100,"d":"100₴"},{"v":120,"d":"120₴"},{"$f":"ВідомостіПроБюджет[[#This Row],[Прогнозовані витрати]]-ВідомостіПроБюджет[[#This Row],[Фактичні витрати]]","v":{"v":-20,"d":"-20₴"}},{"$f":"ВідомостіПроБюджет[[#This Row],[Фактичні витрати]]","v":{"v":120,"d":"120₴"}}]
[null,"Благодійність 1","Подарунки та благодійність",{"v":75,"d":"75₴"},{"v":100,"d":"100₴"},{"$f":"ВідомостіПроБюджет[[#This Row],[Прогнозовані витрати]]-ВідомостіПроБюджет[[#This Row],[Фактичні витрати]]","v":{"v":-25,"d":"-25₴"}},{"$f":"ВідомостіПроБюджет[[#This Row],[Фактичні витрати]]","v":{"v":100,"d":"100₴"}}]
[null,"Благодійність 2","Подарунки та благодійність",{"v":25,"d":"25₴"},{"v":25,"d":"25₴"},{"$f":"ВідомостіПроБюджет[[#This Row],[Прогнозовані витрати]]-ВідомостіПроБюджет[[#This Row],[Фактичні витрати]]","v":{"v":0,"d":"0₴"}},{"$f":"ВідомостіПроБюджет[[#This Row],[Фактичні витрати]]","v":{"v":25,"d":"25₴"}}]
[null,"Подарунок 1","Подарунки та благодійність",null,null,{"$f":"ВідомостіПроБюджет[[#This Row],[Прогнозовані витрати]]-ВідомостіПроБюджет[[#This Row],[Фактичні витрати]]","v":{"v":0,"d":"0₴"}},{"$f":"ВідомостіПроБюджет[[#This Row],[Фактичні витрати]]","v":{"v":0,"d":"0₴"}}]
[null,"Подарунок 2","Подарунки та благодійність",null,null,{"$f":"ВідомостіПроБюджет[[#This Row],[Прогнозовані витрати]]-ВідомостіПроБюджет[[#This Row],[Фактичні витрати]]","v":{"v":0,"d":"0₴"}},{"$f":"ВідомостіПроБюджет[[#This Row],[Фактичні витрати]]","v":{"v":0,"d":"0₴"}}]
[null,"Кабельне / супутникове ТБ","Житло",{"v":100,"d":"100₴"},{"v":100,"d":"100₴"},{"$f":"ВідомостіПроБюджет[[#This Row],[Прогнозовані витрати]]-ВідомостіПроБюджет[[#This Row],[Фактичні витрати]]","v":{"v":0,"d":"0₴"}},{"$f":"ВідомостіПроБюджет[[#This Row],[Фактичні витрати]]","v":{"v":100,"d":"100₴"}}]
[null,"Електроенергія","Житло",{"v":45,"d":"45₴"},{"v":50,"d":"50₴"},{"$f":"ВідомостіПроБюджет[[#This Row],[Прогнозовані витрати]]-ВідомостіПроБюджет[[#This Row],[Фактичні витрати]]","v":{"v":-5,"d":"-5₴"}},{"$f":"ВідомостіПроБюджет[[#This Row],[Фактичні витрати]]","v":{"v":50,"d":"50₴"}}]
[null,"Газ","Житло",{"v":300,"d":"300₴"},{"v":400,"d":"400₴"},{"$f":"ВідомостіПроБюджет[[#This Row],[Прогнозовані витрати]]-ВідомостіПроБюджет[[#This Row],[Фактичні витрати]]","v":{"v":-100,"d":"-100₴"}},{"$f":"ВідомостіПроБюджет[[#This Row],[Фактичні витрати]]","v":{"v":400,"d":"400₴"}}]
[null,"Послуги прибирання будинку","Житло",{"v":200,"d":"200₴"},null,{"$f":"ВідомостіПроБюджет[[#This Row],[Прогнозовані витрати]]-ВідомостіПроБюджет[[#This Row],[Фактичні витрати]]","v":{"v":200,"d":"200₴"}},{"$f":"ВідомостіПроБюджет[[#This Row],[Фактичні витрати]]","v":{"v":0,"d":"0₴"}}]
[null,"Обслуговування","Житло",{"v":200,"d":"200₴"},{"v":150,"d":"150₴"},{"$f":"ВідомостіПроБюджет[[#This Row],[Прогнозовані витрати]]-ВідомостіПроБюджет[[#This Row],[Фактичні витрати]]","v":{"v":50,"d":"50₴"}},{"$f":"ВідомостіПроБюджет[[#This Row],[Фактичні витрати]]","v":{"v":150,"d":"150₴"}}]
[null,"Іпотека або оренда","Житло",{"v":1700,"d":"1,700₴"},{"v":1700,"d":"1,700₴"},{"$f":"ВідомостіПроБюджет[[#This Row],[Прогнозовані витрати]]-ВідомостіПроБюджет[[#This Row],[Фактичні витрати]]","v":{"v":0,"d":"0₴"}},{"$f":"ВідомостіПроБюджет[[#This Row],[Фактичні витрати]]","v":{"v":1700,"d":"1,700₴"}}]
[null,"Природний газ / мастильний матеріал","Житло",null,null,{"$f":"ВідомостіПроБюджет[[#This Row],[Прогнозовані витрати]]-ВідомостіПроБюджет[[#This Row],[Фактичні витрати]]","v":{"v":0,"d":"0₴"}},{"$f":"ВідомостіПроБюджет[[#This Row],[Фактичні витрати]]","v":{"v":0,"d":"0₴"}}]
[null,"Інтернет / онлайн-послуги","Житло",{"v":100,"d":"100₴"},{"v":100,"d":"100₴"},{"$f":"ВідомостіПроБюджет[[#This Row],[Прогнозовані витрати]]-ВідомостіПроБюджет[[#This Row],[Фактичні витрати]]","v":{"v":0,"d":"0₴"}},{"$f":"ВідомостіПроБюджет[[#This Row],[Фактичні витрати]]","v":{"v":100,"d":"100₴"}}]
[null,"Телефон (мобільний)","Житло",{"v":60,"d":"60₴"},{"v":60,"d":"60₴"},{"$f":"ВідомостіПроБюджет[[#This Row],[Прогнозовані витрати]]-ВідомостіПроБюджет[[#This Row],[Фактичні витрати]]","v":{"v":0,"d":"0₴"}},{"$f":"ВідомостіПроБюджет[[#This Row],[Фактичні витрати]]","v":{"v":60,"d":"60₴"}}]
[null,"Телефон (домашній)","Житло",{"v":35,"d":"35₴"},{"v":39,"d":"39₴"},{"$f":"ВідомостіПроБюджет[[#This Row],[Прогнозовані витрати]]-ВідомостіПроБюджет[[#This Row],[Фактичні витрати]]","v":{"v":-4,"d":"-4₴"}},{"$f":"ВідомостіПроБюджет[[#This Row],[Фактичні витрати]]","v":{"v":39,"d":"39₴"}}]
[null,"Господарські товари","Житло",{"v":40,"d":"40₴"},{"v":55,"d":"55₴"},{"$f":"ВідомостіПроБюджет[[#This Row],[Прогнозовані витрати]]-ВідомостіПроБюджет[[#This Row],[Фактичні витрати]]","v":{"v":-15,"d":"-15₴"}},{"$f":"ВідомостіПроБюджет[[#This Row],[Фактичні витрати]]","v":{"v":55,"d":"55₴"}}]
[null,"Вивезення та утилізація сміття","Житло",{"v":25,"d":"25₴"},{"v":22,"d":"22₴"},{"$f":"ВідомостіПроБюджет[[#This Row],[Прогнозовані витрати]]-ВідомостіПроБюджет[[#This Row],[Фактичні витрати]]","v":{"v":3,"d":"3₴"}},{"$f":"ВідомостіПроБюджет[[#This Row],[Фактичні витрати]]","v":{"v":22,"d":"22₴"}}]
[null,"Постачання води й водовідведення","Житло",{"v":25,"d":"25₴"},{"v":26,"d":"26₴"},{"$f":"ВідомостіПроБюджет[[#This Row],[Прогнозовані витрати]]-ВідомостіПроБюджет[[#This Row],[Фактичні витрати]]","v":{"v":-1,"d":"-1₴"}},{"$f":"ВідомостіПроБюджет[[#This Row],[Фактичні витрати]]","v":{"v":26,"d":"26₴"}}]
[null,"Здоров’я","Страхування",{"v":400,"d":"400₴"},{"v":400,"d":"400₴"},{"$f":"ВідомостіПроБюджет[[#This Row],[Прогнозовані витрати]]-ВідомостіПроБюджет[[#This Row],[Фактичні витрати]]","v":{"v":0,"d":"0₴"}},{"$f":"ВідомостіПроБюджет[[#This Row],[Фактичні витрати]]","v":{"v":400,"d":"400₴"}}]
[null,"Дім","Страхування",{"v":400,"d":"400₴"},{"v":400,"d":"400₴"},{"$f":"ВідомостіПроБюджет[[#This Row],[Прогнозовані витрати]]-ВідомостіПроБюджет[[#This Row],[Фактичні витрати]]","v":{"v":0,"d":"0₴"}},{"$f":"ВідомостіПроБюджет[[#This Row],[Фактичні витрати]]","v":{"v":400,"d":"400₴"}}]
[null,"Життя","Страхування",{"v":100,"d":"100₴"},{"v":100,"d":"100₴"},{"$f":"ВідомостіПроБюджет[[#This Row],[Прогнозовані витрати]]-ВідомостіПроБюджет[[#This Row],[Фактичні витрати]]","v":{"v":0,"d":"0₴"}},{"$f":"ВідомостіПроБюджет[[#This Row],[Фактичні витрати]]","v":{"v":100,"d":"100₴"}}]
[null,"Кредитна картка 1","Кредити",{"v":200,"d":"200₴"},{"v":200,"d":"200₴"},{"$f":"ВідомостіПроБюджет[[#This Row],[Прогнозовані витрати]]-ВідомостіПроБюджет[[#This Row],[Фактичні витрати]]","v":{"v":0,"d":"0₴"}},{"$f":"ВідомостіПроБюджет[[#This Row],[Фактичні витрати]]","v":{"v":200,"d":"200₴"}}]
[null,"Кредитна картка 2","Кредити",null,null,{"$f":"ВідомостіПроБюджет[[#This Row],[Прогнозовані витрати]]-ВідомостіПроБюджет[[#This Row],[Фактичні витрати]]","v":{"v":0,"d":"0₴"}},{"$f":"ВідомостіПроБюджет[[#This Row],[Фактичні витрати]]","v":{"v":0,"d":"0₴"}}]
[null,"Кредитна картка 3","Кредити",null,null,{"$f":"ВідомостіПроБюджет[[#This Row],[Прогнозовані витрати]]-ВідомостіПроБюджет[[#This Row],[Фактичні витрати]]","v":{"v":0,"d":"0₴"}},{"$f":"ВідомостіПроБюджет[[#This Row],[Фактичні витрати]]","v":{"v":0,"d":"0₴"}}]
[null,"Особисте","Кредити",null,null,{"$f":"ВідомостіПроБюджет[[#This Row],[Прогнозовані витрати]]-ВідомостіПроБюджет[[#This Row],[Фактичні витрати]]","v":{"v":0,"d":"0₴"}},{"$f":"ВідомостіПроБюджет[[#This Row],[Фактичні витрати]]","v":{"v":0,"d":"0₴"}}]
[null,"Навчання","Кредити",null,null,{"$f":"ВідомостіПроБюджет[[#This Row],[Прогнозовані витрати]]-ВідомостіПроБюджет[[#This Row],[Фактичні витрати]]","v":{"v":0,"d":"0₴"}},{"$f":"ВідомостіПроБюджет[[#This Row],[Фактичні витрати]]","v":{"v":0,"d":"0₴"}}]
[null,"Одяг","Догляд за собою",{"v":150,"d":"150₴"},{"v":140,"d":"140₴"},{"$f":"ВідомостіПроБюджет[[#This Row],[Прогнозовані витрати]]-ВідомостіПроБюджет[[#This Row],[Фактичні витрати]]","v":{"v":10,"d":"10₴"}},{"$f":"ВідомостіПроБюджет[[#This Row],[Фактичні витрати]]","v":{"v":140,"d":"140₴"}}]
[null,"Хімчистка","Догляд за собою",null,null,{"$f":"ВідомостіПроБюджет[[#This Row],[Прогнозовані витрати]]-ВідомостіПроБюджет[[#This Row],[Фактичні витрати]]","v":{"v":0,"d":"0₴"}},{"$f":"ВідомостіПроБюджет[[#This Row],[Фактичні витрати]]","v":{"v":0,"d":"0₴"}}]
[null,"Волосся/нігті","Догляд за собою",null,null,{"$f":"ВідомостіПроБюджет[[#This Row],[Прогнозовані витрати]]-ВідомостіПроБюджет[[#This Row],[Фактичні витрати]]","v":{"v":0,"d":"0₴"}},{"$f":"ВідомостіПроБюджет[[#This Row],[Фактичні витрати]]","v":{"v":0,"d":"0₴"}}]
[null,"Спортзал","Догляд за собою",null,null,{"$f":"ВідомостіПроБюджет[[#This Row],[Прогнозовані витрати]]-ВідомостіПроБюджет[[#This Row],[Фактичні витрати]]","v":{"v":0,"d":"0₴"}},{"$f":"ВідомостіПроБюджет[[#This Row],[Фактичні витрати]]","v":{"v":0,"d":"0₴"}}]
[null,"Медицина","Догляд за собою",null,null,{"$f":"ВідомостіПроБюджет[[#This Row],[Прогнозовані витрати]]-ВідомостіПроБюджет[[#This Row],[Фактичні витрати]]","v":{"v":0,"d":"0₴"}},{"$f":"ВідомостіПроБюджет[[#This Row],[Фактичні витрати]]","v":{"v":0,"d":"0₴"}}]
[null,"Страви","Домашні тварини",{"v":150,"d":"150₴"},{"v":75,"d":"75₴"},{"$f":"ВідомостіПроБюджет[[#This Row],[Прогнозовані витрати]]-ВідомостіПроБюджет[[#This Row],[Фактичні витрати]]","v":{"v":75,"d":"75₴"}},{"$f":"ВідомостіПроБюджет[[#This Row],[Фактичні витрати]]","v":{"v":75,"d":"75₴"}}]
[null,"Грумінг","Домашні тварини",{"v":20,"d":"20₴"},{"v":25,"d":"25₴"},{"$f":"ВідомостіПроБюджет[[#This Row],[Прогнозовані витрати]]-ВідомостіПроБюджет[[#This Row],[Фактичні витрати]]","v":{"v":-5,"d":"-5₴"}},{"$f":"ВідомостіПроБюджет[[#This Row],[Фактичні витрати]]","v":{"v":25,"d":"25₴"}}]
[null,"Медицина","Домашні тварини",null,null,{"$f":"ВідомостіПроБюджет[[#This Row],[Прогнозовані витрати]]-ВідомостіПроБюджет[[#This Row],[Фактичні витрати]]","v":{"v":0,"d":"0₴"}},{"$f":"ВідомостіПроБюджет[[#This Row],[Фактичні витрати]]","v":{"v":0,"d":"0₴"}}]
[null,"Іграшки","Домашні тварини",null,null,{"$f":"ВідомостіПроБюджет[[#This Row],[Прогнозовані витрати]]-ВідомостіПроБюджет[[#This Row],[Фактичні витрати]]","v":{"v":0,"d":"0₴"}},{"$f":"ВідомостіПроБюджет[[#This Row],[Фактичні витрати]]","v":{"v":0,"d":"0₴"}}]
[null,"Депозити","Заощадження або інвестиції",{"v":200,"d":"200₴"},{"v":200,"d":"200₴"},{"$f":"ВідомостіПроБюджет[[#This Row],[Прогнозовані витрати]]-ВідомостіПроБюджет[[#This Row],[Фактичні витрати]]","v":{"v":0,"d":"0₴"}},{"$f":"ВідомостіПроБюджет[[#This Row],[Фактичні витрати]]","v":{"v":200,"d":"200₴"}}]
[null,"Пенсійний внесок","Заощадження або інвестиції",null,null,{"$f":"ВідомостіПроБюджет[[#This Row],[Прогнозовані витрати]]-ВідомостіПроБюджет[[#This Row],[Фактичні витрати]]","v":{"v":0,"d":"0₴"}},{"$f":"ВідомостіПроБюджет[[#This Row],[Фактичні витрати]]","v":{"v":0,"d":"0₴"}}]
[null,"На доходи","Податки",{"v":300,"d":"300₴"},{"v":300,"d":"300₴"},{"$f":"ВідомостіПроБюджет[[#This Row],[Прогнозовані витрати]]-ВідомостіПроБюджет[[#This Row],[Фактичні витрати]]","v":{"v":0,"d":"0₴"}},{"$f":"ВідомостіПроБюджет[[#This Row],[Фактичні витрати]]","v":{"v":300,"d":"300₴"}}]
[null,"Місцеві","Податки",null,null,{"$f":"ВідомостіПроБюджет[[#This Row],[Прогнозовані витрати]]-ВідомостіПроБюджет[[#This Row],[Фактичні витрати]]","v":{"v":0,"d":"0₴"}},{"$f":"ВідомостіПроБюджет[[#This Row],[Фактичні витрати]]","v":{"v":0,"d":"0₴"}}]
[null,"На майно","Податки",null,null,{"$f":"ВідомостіПроБюджет[[#This Row],[Прогнозовані витрати]]-ВідомостіПроБюджет[[#This Row],[Фактичні витрати]]","v":{"v":0,"d":"0₴"}},{"$f":"ВідомостіПроБюджет[[#This Row],[Фактичні витрати]]","v":{"v":0,"d":"0₴"}}]
[null,"Автобус/таксі","Транспорт",{"v":100,"d":"100₴"},{"v":150,"d":"150₴"},{"$f":"ВідомостіПроБюджет[[#This Row],[Прогнозовані витрати]]-ВідомостіПроБюджет[[#This Row],[Фактичні витрати]]","v":{"v":-50,"d":"-50₴"}},{"$f":"ВідомостіПроБюджет[[#This Row],[Фактичні витрати]]","v":{"v":150,"d":"150₴"}}]
[null,"Паливо","Транспорт",{"v":450,"d":"450₴"},{"v":400,"d":"400₴"},{"$f":"ВідомостіПроБюджет[[#This Row],[Прогнозовані витрати]]-ВідомостіПроБюджет[[#This Row],[Фактичні витрати]]","v":{"v":50,"d":"50₴"}},{"$f":"ВідомостіПроБюджет[[#This Row],[Фактичні витрати]]","v":{"v":400,"d":"400₴"}}]
[null,"Страхування","Транспорт",{"v":300,"d":"300₴"},{"v":300,"d":"300₴"},{"$f":"ВідомостіПроБюджет[[#This Row],[Прогнозовані витрати]]-ВідомостіПроБюджет[[#This Row],[Фактичні витрати]]","v":{"v":0,"d":"0₴"}},{"$f":"ВідомостіПроБюджет[[#This Row],[Фактичні витрати]]","v":{"v":300,"d":"300₴"}}]
[null,"Ліцензування ","Транспорт",{"v":25,"d":"25₴"},{"v":25,"d":"25₴"},{"$f":"ВідомостіПроБюджет[[#This Row],[Прогнозовані витрати]]-ВідомостіПроБюджет[[#This Row],[Фактичні витрати]]","v":{"v":0,"d":"0₴"}},{"$f":"ВідомостіПроБюджет[[#This Row],[Фактичні витрати]]","v":{"v":25,"d":"25₴"}}]
[null,"Обслуговування","Транспорт",{"v":100,"d":"100₴"},{"v":50,"d":"50₴"},{"$f":"ВідомостіПроБюджет[[#This Row],[Прогнозовані витрати]]-ВідомостіПроБюджет[[#This Row],[Фактичні витрати]]","v":{"v":50,"d":"50₴"}},{"$f":"ВідомостіПроБюджет[[#This Row],[Фактичні витрати]]","v":{"v":50,"d":"50₴"}}]
[null,"Плата за стоянку","Транспорт",null,null,{"$f":"ВідомостіПроБюджет[[#This Row],[Прогнозовані витрати]]-ВідомостіПроБюджет[[#This Row],[Фактичні витрати]]","v":{"v":0,"d":"0₴"}},{"$f":"ВідомостіПроБюджет[[#This Row],[Фактичні витрати]]","v":{"v":0,"d":"0₴"}}]
[null,"Плата за авто","Транспорт",{"v":450,"d":"450₴"},{"v":450,"d":"450₴"},{"$f":"ВідомостіПроБюджет[[#This Row],[Прогнозовані витрати]]-ВідомостіПроБюджет[[#This Row],[Фактичні витрати]]","v":{"v":0,"d":"0₴"}},{"$f":"ВідомостіПроБюджет[[#This Row],[Фактичні витрати]]","v":{"v":450,"d":"450₴"}}]
[null,"Підсумок",null,{"$f":"SUBTOTAL(109,ВідомостіПроБюджет[Прогнозовані витрати])","v":{"v":7915,"d":"7,915₴"}},{"$f":"SUBTOTAL(109,ВідомостіПроБюджет[Фактичні витрати])","v":{"v":7860,"d":"7,860₴"}},{"$f":"SUBTOTAL(109,ВідомостіПроБюджет[Різниця])","v":{"v":55,"d":"55₴"}}]

{"sheet":"Додаткові дані","index":3,"n_rows":15,"n_cols":5,"rows_kept":15}
["Тут ви можете змінити пункти розкривного списку в стовпці \"Категорія\" таблиці відомостей про бюджет на аркуші \"Місячний бюджет\". Щоб зробити це, змініть категорії бюджету в таблиці підстановки, починаючи з клітинки E2, або введіть нові. Зведена таблиця, пов’язана з діаграмою огляду бюджету на аркуші \"Звіт про місячний бюджет\", починається в клітинці B2.","Зведена таблиця, пов’язана з діаграмою огляду бюджету",null,null,"Список підстановки категорій у таблиці відомостей про бюджет"]
[null,"Категорія","Витрати",null,"Підстановка категорій бюджету"]
[null,"Діти",{"v":140,"d":"140₴"},null,"Діти"]
[null,"Розваги",{"v":358,"d":"358₴"},null,"Розваги"]
[null,"Страви",{"v":1320,"d":"1,320₴"},null,"Страви"]
[null,"Подарунки та благодійність",{"v":125,"d":"125₴"},null,"Подарунки та благодійність"]
[null,"Житло",{"v":2702,"d":"2,702₴"},null,"Житло"]
[null,"Страхування",{"v":900,"d":"900₴"},null,"Страхування"]
[null,"Кредити",{"v":200,"d":"200₴"},null,"Кредити"]
[null,"Догляд за собою",{"v":140,"d":"140₴"},null,"Догляд за собою"]
[null,"Домашні тварини",{"v":100,"d":"100₴"},null,"Домашні тварини"]
[null,"Заощадження або інвестиції",{"v":200,"d":"200₴"},null,"Заощадження або інвестиції"]
[null,"Податки",{"v":300,"d":"300₴"},null,"Податки"]
[null,"Транспорт",{"v":1375,"d":"1,375₴"},null,"Транспорт"]
[null,"Загальний підсумок",{"v":7860,"d":"7,860₴"}]